[Event "FIDE WCCC Open-08 2024"]
[Site "Montesilvano"]
[Date "2024.11.19"]
[Round "5.6"]
[White "Xu, Zhihan (Samuel)"]
[Black "Mudriievskyi, Jan"]
[Result "1-0"]
[ECO "B78"]
[WhiteElo "1881"]
[BlackElo "1682"]
[Annotator "NA RC"]
[PlyCount "95"]
[EventDate "2024.11.18"]
[EventType "swiss"]
[EventCountry "ITA"]
[SourceTitle "playchess.com"]
[Source "ChessBase"]
[SourceQuality "1"]
[TimeControl "5400+30"]

1. e4 {[%emt 0:00:00]} c5 {[%emt 0:00:10]} 2. Nf3 {[%emt 0:00:05]} d6 {[%emt 0:00:07]} 3. d4 {[%emt 0:00:01]} cxd4 {[%emt 0:00:07]} 4. Nxd4 {[%emt 0:00:02]} Nf6 {[%emt 0:00:14]} 5. Nc3 {[%emt 0:00:03]} g6 {[%emt 0:00:10]} 6. Be3 {[%emt 0:00:02]} Bg7 {[%emt 0:00:11]} 7. f3 {[%emt 0:00:02]} O-O {[%emt 0:00:16]} 8. Qd2 {[%emt 0:00:07]} Nc6 {[%emt 0:00:11]} 9. Bc4 {[%emt 0:00:04]} Bd7 {[%emt 0:00:13]} 10. O-O-O {[%emt 0:00:06]} Rc8 {[%emt 0:00:14]} 11. Bb3 {[%emt 0:00:05]} Nxd4 {[%emt 0:00:32]} 12. Bxd4 {[%emt 0:00:33]} b5 {[%emt 0:00:30]} 13. e5 {[%emt 0:32:50]} dxe5 {[%emt 0:54:46]} 14. Bxe5 {[%emt 0:00:03]} Bc6 {[%emt 0:03:24]} 15. Qg5 {[%emt 0:31:57]} Qa5 {[%emt 0:07:45]} 16. Bd4 {[%emt 0:03:30]} Rfd8 {[%emt 0:03:55]} 17. Rhe1 {[%emt 0:09:10]} Rd7 {[%emt 0:10:54]} 18. Qc5 {[%emt 0:06:15]} Qc7 {[%emt 0:12:03]} 19. Kb1 {[%emt 0:10:55]} Kf8 {[%emt 0:01:32]} 20. Be5 {[%emt 0:02:10]} Qb7 {[%emt 0:01:03]} 21. Rxd7 {[%emt 0:02:00]} Bxd7 {[%emt 0:01:15]} 22. Qd4 {[%emt 0:00:40]} a6 {[%emt 0:00:56]} 23. Nd5 {[%emt 0:00:35]} Be6 {[%emt 0:00:55]} 24. Nxf6 {[%emt 0:00:25]} exf6 {[%emt 0:00:28]} 25. Bxe6 {[%emt 0:00:20]} fxe5 {[%emt 0:00:17]} 26. Qd6+ {[%emt 0:00:40]} Kg8 {[%emt 0:00:15]} 27. Bxc8 {[%emt 0:00:04]} Qxc8 {[%emt 0:00:10]} 28. Rd1 {[%emt 0:00:46]} Qb7 {[%emt 0:00:45]} 29. Qd8+ {[%emt 0:00:25]} Bf8 {[%emt 0:00:07]} 30. Rd7 {[%emt 0:00:25]} Qc6 {[%emt 0:00:24]} 31. Rc7 {[%emt 0:00:30]} Qb6 {[%emt 0:00:24]} 32. a3 {[%emt 0:00:25]} Qg1+ {[%emt 0:00:30]} 33. Ka2 {[%emt 0:00:03]} Qc1 {[%emt 0:00:07]} 34. Qf6 {[%emt 0:00:32]} Qf4 {[%emt 0:00:38]} 35. Qxf4 {[%emt 0:00:21]} exf4 {[%emt 0:00:07]} 36. Rc6 {[%emt 0:00:08]} a5 {[%emt 0:00:24]} 37. Rb6 {[%emt 0:00:11]} b4 {[%emt 0:00:09]} 38. a4 {[%emt 0:00:40]} b3+ {[%emt 0:00:29]} 39. Kxb3 {[%emt 0:00:05]} Bb4 {[%emt 0:00:11]} 40. Rxb4 {[%emt 0:00:25]} axb4 {[%emt 0:00:06]} 41. a5 {[%emt 0:00:01]} Kg7 {[%emt 0:00:27]} 42. a6 {[%emt 0:00:04]} Kh6 {[%emt 0:00:05]} 43. a7 {[%emt 0:00:01]} Kh5 {[%emt 0:00:21]} 44. a8=Q {[%emt 0:00:08]} f5 {[%emt 0:00:11]} 45. Qf8 {[%emt 0:00:52]} h6 {[%emt 0:00:18]} 46. Qf6 {[%emt 0:00:16]} g5 {[%emt 0:00:13]} 47. Qxf5 {[%emt 0:00:03]} Kh4 {[%emt 0:00:22]} 48. Qg4# {[%emt 0:00:33]} 1-0

[Event "FIDE WCCC Open-08 2024"]
[Site "Montesilvano"]
[Date "2024.11.19"]
[Round "5.7"]
[White "Badescu, Matei-Andrei"]
[Black "Czachurski, Ignacy"]
[Result "1-0"]
[ECO "C54"]
[WhiteElo "1829"]
[BlackElo "1672"]
[Annotator "NA RC"]
[PlyCount "93"]
[EventDate "2024.11.18"]
[EventType "swiss"]
[EventCountry "ITA"]
[SourceTitle "playchess.com"]
[Source "ChessBase"]
[SourceQuality "1"]
[TimeControl "5400+30"]

1. e4 {[%emt 0:00:04]} e5 {[%emt 0:00:16]} 2. Nf3 {[%emt 0:00:09]} Nc6 {[%emt 0:00:11]} 3. Bc4 {[%emt 0:00:07]} Bc5 {[%emt 0:00:19]} 4. c3 {[%emt 0:00:14]} Nf6 {[%emt 0:00:16]} 5. d3 {[%emt 0:00:11]} d6 {[%emt 0:00:20]} 6. O-O {[%emt 0:00:56]} a6 {[%emt 0:00:12]} 7. Bb3 {[%emt 0:00:23]} Ba7 {[%emt 0:00:11]} 8. Re1 {[%emt 0:05:51]} Qe7 {[%emt 0:01:00]} 9. Be3 {[%emt 0:02:45]} h6 {[%emt 0:01:55]} 10. Bxa7 {[%emt 0:02:18]} Nxa7 {[%emt 0:00:09]} 11. d4 {[%emt 0:05:31]} g5 {[%emt 0:04:16]} 12. dxe5 {[%emt 0:02:03]} dxe5 {[%emt 0:00:14]} 13. Na3 {[%emt 0:07:36]} Bd7 {[%emt 0:04:04]} 14. Ba4 {[%emt 0:03:49]} O-O-O {[%emt 0:03:20]} 15. Bxd7+ {[%emt 0:00:28]} Rxd7 {[%emt 0:00:23]} 16. Qe2 {[%emt 0:06:11]} Rhd8 {[%emt 0:05:08]} 17. Nc4 {[%emt 0:01:19]} Nc6 {[%emt 0:01:12]} 18. a4 {[%emt 0:03:08]} a5 {[%emt 0:04:43]} 19. Rab1 {[%emt 0:00:43]} Nh5 {[%emt 0:03:44]} 20. g3 {[%emt 0:00:58]} Ng7 {[%emt 0:03:31]} 21. Rec1 {[%emt 0:56:16]} f6 {[%emt 0:02:06]} 22. b4 {[%emt 0:00:00]} axb4 {[%emt 0:04:49]} 23. cxb4 {[%emt 0:00:00]} Kb8 {[%emt 0:00:28]} 24. Na5 {[%emt 0:00:00]} Nxa5 {[%emt 0:02:55]} 25. bxa5 {[%emt 0:00:00]} Ne8 {[%emt 0:08:51]} 26. Qb2 {[%emt 0:00:00]} Nd6 {[%emt 0:01:45]} 27. Ne1 {[%emt 0:00:00]} Rc8 {[%emt 0:03:42]} 28. Nd3 {[%emt 0:00:00]} c6 {[%emt 0:01:14]} 29. Nc5 {[%emt 0:00:00]} Rdd8 {[%emt 0:00:45]} 30. a6 {[%emt 0:00:00]} b5 {[%emt 0:00:46]} 31. Qb4 {[%emt 0:00:00]} Ka7 {[%emt 0:02:14]} 32. Nb7 {[%emt 0:00:00]} Rd7 {[%emt 0:01:55]} 33. axb5 {[%emt 0:00:00]} Nxb7 {[%emt 0:04:23]} 34. axb7 {[%emt 0:00:00]} Rxb7 {[%emt 0:00:48]} 35. Qa4+ {[%emt 0:00:00]} Kb8 {[%emt 0:00:28]} 36. bxc6 {[%emt 0:00:00]} Rxb1 {[%emt 0:00:34]} 37. Rxb1+ {[%emt 0:00:00]} Kc7 {[%emt 0:00:14]} 38. Rb7+ {[%emt 0:00:00]} Kd8 {[%emt 0:00:04]} 39. Qd1+ {[%emt 0:00:00]} Ke8 {[%emt 0:00:13]} 40. Rxe7+ {[%emt 0:00:00]} Kxe7 {[%emt 0:00:15]} 41. Qd7+ {[%emt 0:00:00]} Kf8 {[%emt 0:00:17]} 42. Qxc8+ {[%emt 0:00:00]} Kg7 {[%emt 0:00:13]} 43. c7 {[%emt 0:00:00]} Kg6 {[%emt 0:37:37]} 44. Qf5+ {[%emt 0:00:00]} Kh5 {[%emt 0:00:00]} 45. Qh3+ {[%emt 0:00:00]} Kg6 {[%emt 0:00:00]} 46. c8=Q {[%emt 0:00:00]} g4 {[%emt 0:00:00]} 47. Qg8# {[%emt 0:00:00]} 1-0

[Event "FIDE WCCC Open-08 2024"]
[Site "Montesilvano"]
[Date "2024.11.19"]
[Round "5.8"]
[White "Petrenko, Tymofii"]
[Black "Mani, Sarbartho"]
[Result "0-1"]
[ECO "C02"]
[WhiteElo "1678"]
[BlackElo "1824"]
[Annotator "NA RC"]
[PlyCount "98"]
[EventDate "2024.11.18"]
[EventType "swiss"]
[EventCountry "ITA"]
[SourceTitle "playchess.com"]
[Source "ChessBase"]
[SourceQuality "1"]
[TimeControl "5400+30"]

1. e4 {[%emt 0:00:09]} e6 {[%emt 0:00:05]} 2. d4 {[%emt 0:00:48]} d5 {[%emt 0:00:06]} 3. e5 {[%emt 0:01:03]} c5 {[%emt 0:00:05]} 4. c3 {[%emt 0:01:06]} Nc6 {[%emt 0:00:08]} 5. Nf3 {[%emt 0:01:14]} Qb6 {[%emt 0:00:07]} 6. a3 {[%emt 0:01:50]} c4 {[%emt 0:00:08]} 7. Nbd2 {[%emt 0:00:31]} Na5 {[%emt 0:00:09]} 8. Be2 {[%emt 0:01:23]} Bd7 {[%emt 0:00:08]} 9. O-O {[%emt 0:00:28]} Ne7 {[%emt 0:00:03]} 10. Rb1 {[%emt 0:00:56]} Qc7 {[%emt 0:00:06]} 11. h4 {[%emt 0:01:40]} h6 {[%emt 0:01:40]} 12. h5 {[%emt 0:01:13]} Nc8 {[%emt 0:00:05]} 13. Qe1 {[%emt 0:00:14]} Nb6 {[%emt 0:00:10]} 14. Bd1 {[%emt 0:00:13]} Ba4 {[%emt 0:00:36]} 15. Bxa4+ {[%emt 0:00:49]} Nxa4 {[%emt 1:34:24]} 16. Nh4 {[%emt 0:00:27]} O-O-O {[%emt 0:00:00]} 17. f4 {[%emt 0:00:25]} Nc6 {[%emt 0:00:00]} 18. f5 {[%emt 0:00:46]} exf5 {[%emt 0:01:30]} 19. Nxf5 {[%emt 0:04:14]} g6 {[%emt 0:00:00]} 20. hxg6 {[%emt 0:00:09]} fxg6 {[%emt 0:00:00]} 21. Nh4 {[%emt 0:00:27]} Ne7 {[%emt 0:00:00]} 22. Rf7 {[%emt 0:03:57]} Qc6 {[%emt 0:00:00]} 23. Rf6 {[%emt 0:01:03]} Qe8 {[%emt 0:00:00]} 24. Qg3 {[%emt 0:04:44]} g5 {[%emt 0:00:00]} 25. Nf5 {[%emt 0:01:54]} Nxf5 {[%emt 0:00:00]} 26. Qg4 {[%emt 0:01:07]} Be7 {[%emt 0:00:00]} 27. Qxf5+ {[%emt 0:01:48]} Kb8 {[%emt 0:00:00]} 28. Rf7 {[%emt 0:01:19]} Nb6 {[%emt 0:00:00]} 29. b3 {[%emt 0:02:06]} cxb3 {[%emt 0:00:00]} 30. Rxb3 {[%emt 0:00:42]} Rf8 {[%emt 0:00:00]} 31. Rxf8 {[%emt 0:00:40]} Qxf8 {[%emt 0:00:00]} 32. Qd3 {[%emt 0:01:36]} Qf7 {[%emt 0:00:00]} 33. Qe2 {[%emt 0:05:43]} Qe6 {[%emt 0:00:00]} 34. Nf1 {[%emt 0:00:50]} Rf8 {[%emt 0:00:00]} 35. Bd2 {[%emt 0:01:29]} Nc4 {[%emt 0:00:00]} 36. Ne3 {[%emt 0:02:47]} Nxe3 {[%emt 0:00:00]} 37. Bxe3 {[%emt 0:00:16]} a6 {[%emt 0:00:00]} 38. Qb2 {[%emt 0:01:45]} Qc8 {[%emt 0:00:00]} 39. Rb6 {[%emt 0:01:13]} Ka7 {[%emt 0:00:00]} 40. c4 {[%emt 0:01:11]} Bd8 {[%emt 0:00:00]} 41. Rxh6 {[%emt 0:00:38]} Qxc4 {[%emt 0:00:00]} 42. Rh7 {[%emt 0:01:14]} Bb6 {[%emt 0:00:00]} 43. Qb4 {[%emt 0:01:52]} Rc8 {[%emt 0:00:00]} 44. Qb2 {[%emt 0:05:54]} Qd3 {[%emt 0:00:00]} 45. Rh3 {[%emt 0:00:21]} Rc2 {[%emt 0:00:00]} 46. Qb4 {[%emt 0:00:22]} Rc4 {[%emt 0:00:00]} 47. Qb2 {[%emt 0:00:53]} g4 {[%emt 0:00:00]} 48. Rg3 {[%emt 0:00:19]} Qd1+ {[%emt 0:00:00]} 49. Kh2 {[%emt 0:00:32]} Rc8 {[%emt 0:00:00]} 0-1

[Event "FIDE WCCC Open-08 2024"]
[Site "Montesilvano"]
[Date "2024.11.19"]
[Round "5.9"]
[White "Szumiec, Jan"]
[Black "Protopopescu, Luca"]
[Result "0-1"]
[ECO "C06"]
[WhiteElo "1678"]
[BlackElo "1818"]
[Annotator "NA RC"]
[PlyCount "56"]
[EventDate "2024.11.18"]
[EventType "swiss"]
[EventCountry "ITA"]
[SourceTitle "playchess.com"]
[Source "ChessBase"]
[SourceQuality "1"]
[TimeControl "5400+30"]

1. e4 {[%emt 0:00:06]} e6 {[%emt 0:00:05]} 2. d4 {[%emt 0:00:09]} d5 {[%emt 0:00:09]} 3. Nd2 {[%emt 0:00:18]} Nf6 {[%emt 0:00:19]} 4. e5 {[%emt 0:00:08]} Nfd7 {[%emt 0:00:10]} 5. Bd3 {[%emt 0:00:10]} c5 {[%emt 0:00:10]} 6. c3 {[%emt 0:00:05]} Nc6 {[%emt 0:00:34]} 7. Ne2 {[%emt 0:00:33]} cxd4 {[%emt 0:00:20]} 8. cxd4 {[%emt 0:00:07]} f6 {[%emt 0:00:09]} 9. exf6 {[%emt 0:01:15]} Nxf6 {[%emt 0:00:09]} 10. Nf3 {[%emt 0:00:45]} Bd6 {[%emt 0:00:32]} 11. O-O {[%emt 0:01:18]} O-O {[%emt 0:00:19]} 12. Bf4 {[%emt 0:00:46]} Bxf4 {[%emt 0:02:36]} 13. Nxf4 {[%emt 0:02:12]} Ng4 {[%emt 0:00:46]} 14. Ne2 {[%emt 0:19:55]} Qd6 {[%emt 0:12:47]} 15. Ng3 {[%emt 0:05:12]} e5 {[%emt 0:00:25]} 16. dxe5 {[%emt 0:01:36]} Ngxe5 {[%emt 0:00:36]} 17. Nxe5 {[%emt 0:01:33]} Nxe5 {[%emt 0:00:29]} 18. Rc1 {[%emt 0:14:38]} Bg4 {[%emt 0:04:33]} 19. f3 {[%emt 0:09:02]} Bd7 {[%emt 0:00:47]} 20. Kh1 {[%emt 0:05:09]} a6 {[%emt 0:00:31]} 21. Be4 {[%emt 0:07:51]} d4 {[%emt 0:07:43]} 22. Bxb7 {[%emt 0:07:59]} Rab8 {[%emt 0:02:54]} 23. Ne4 {[%emt 0:00:43]} Qb4 {[%emt 0:09:23]} 24. Bxa6 {[%emt 0:04:14]} Qxb2 {[%emt 0:00:49]} 25. Rf2 {[%emt 0:04:14]} Qa3 {[%emt 0:03:06]} 26. Bc4+ {[%emt 0:01:42]} Nxc4 {[%emt 0:00:53]} 27. Rxc4 {[%emt 0:00:26]} Qe3 {[%emt 0:03:10]} 28. Re2 {[%emt 0:02:02]} Qxe2 {[%emt 0:00:30]} 0-1

[Event "FIDE WCCC Open-08 2024"]
[Site "Montesilvano"]
[Date "2024.11.19"]
[Round "5.10"]
[White "Zhu, Daniel"]
[Black "Ayaan Phutane"]
[Result "1-0"]
[ECO "D02"]
[WhiteElo "2050"]
[BlackElo "1796"]
[Annotator "RC"]
[PlyCount "75"]
[EventDate "2024.11.18"]
[EventType "swiss"]
[EventCountry "ITA"]
[SourceTitle "playchess.com"]
[Source "ChessBase"]
[SourceQuality "1"]
[TimeControl "5400+30"]

1. d4 {[%emt 0:00:12]} Nf6 {[%emt 0:00:09]} 2. Nf3 {[%emt 0:00:31]} d5 {[%emt 0:00:15]} 3. Bf4 {[%emt 0:00:15]} e6 {[%emt 0:00:33]} 4. e3 {[%emt 0:00:22]} c5 {[%emt 0:00:07]} 5. Nbd2 {[%emt 0:00:07]} Nc6 {[%emt 0:00:07]} 6. c3 {[%emt 0:00:06]} Nh5 {[%emt 0:00:27]} 7. Bg5 {[%emt 0:01:32]} f6 {[%emt 0:00:09]} 8. Bh4 {[%emt 0:01:14]} g6 {[%emt 0:00:08]} 9. Be2 {[%emt 0:01:45]} Ng7 {[%emt 0:00:33]} 10. Bd3 {[%emt 0:00:21]} cxd4 {[%emt 0:01:46]} 11. cxd4 {[%emt 0:01:29]} Be7 {[%emt 0:02:05]} 12. O-O {[%emt 0:01:23]} O-O {[%emt 0:01:15]} 13. a3 {[%emt 0:01:31]} Bd7 {[%emt 0:07:44]} 14. Rc1 {[%emt 0:02:18]} Rc8 {[%emt 0:01:21]} 15. b4 {[%emt 0:02:39]} a5 {[%emt 0:03:27]} 16. b5 {[%emt 0:02:09]} Na7 {[%emt 0:00:07]} 17. a4 {[%emt 0:00:21]} Bb4 {[%emt 0:04:11]} 18. Nb3 {[%emt 0:02:32]} g5 {[%emt 0:05:58]} 19. Bg3 {[%emt 0:02:26]} Qe7 {[%emt 0:06:33]} 20. Rc2 {[%emt 0:05:25]} Nf5 {[%emt 0:18:57]} 21. Qb1 {[%emt 0:04:16]} Rxc2 {[%emt 0:15:38]} 22. Qxc2 {[%emt 0:04:16]} Rc8 {[%emt 0:03:07]} 23. Qb1 {[%emt 0:05:50]} Nxg3 {[%emt 0:08:43]} 24. hxg3 {[%emt 0:04:20]} b6 {[%emt 0:05:39]} 25. Kh2 {[%emt 0:06:09]} Ba3 {[%emt 0:08:07]} 26. Rh1 {[%emt 0:01:56]} g4 {[%emt 0:04:27]} 27. Nfd2 {[%emt 0:05:25]} f5 {[%emt 0:01:48]} 28. Kg1 {[%emt 0:01:16]} Qb4 {[%emt 0:00:26]} 29. Qa2 {[%emt 0:06:56]} Bc1 {[%emt 0:00:34]} 30. Nxc1 {[%emt 0:01:19]} Rxc1+ {[%emt 0:00:04]} 31. Nf1 {[%emt 0:00:14]} Qd6 {[%emt 0:01:00]} 32. Qd2 {[%emt 0:01:30]} Qc7 {[%emt 0:00:29]} 33. e4 {[%emt 0:02:01]} dxe4 {[%emt 0:00:25]} 34. Qg5+ {[%emt 0:01:14]} Kf8 {[%emt 0:00:31]} 35. Rxh7 {[%emt 0:00:30]} Rxf1+ {[%emt 0:00:35]} 36. Bxf1 {[%emt 0:00:16]} Bc8 {[%emt 0:00:15]} 37. Qf6+ {[%emt 0:00:13]} Qf7 {[%emt 0:00:11]} 38. Qxf7# {[%emt 0:00:05]} 1-0

[Event "FIDE WCCC Open-08 2024"]
[Site "Montesilvano"]
[Date "2024.11.19"]
[Round "5.11"]
[White "Adilbek, Adinur"]
[Black "Ulan, Rizat"]
[Result "0-1"]
[ECO "B26"]
[WhiteElo "1651"]
[BlackElo "1783"]
[Annotator "NA RC"]
[PlyCount "132"]
[EventDate "2024.11.18"]
[EventType "swiss"]
[EventCountry "ITA"]
[SourceTitle "playchess.com"]
[Source "ChessBase"]
[SourceQuality "1"]
[TimeControl "5400+30"]

1. e4 {[%emt 0:00:00]} c5 {[%emt 0:00:10]} 2. Nc3 {[%emt 0:00:07]} Nc6 {[%emt 0:00:19]} 3. g3 {[%emt 0:00:08]} g6 {[%emt 0:00:11]} 4. Bg2 {[%emt 0:00:06]} Bg7 {[%emt 0:00:12]} 5. Nge2 {[%emt 0:00:12]} e6 {[%emt 0:00:41]} 6. d3 {[%emt 0:00:42]} Nge7 {[%emt 0:00:17]} 7. Be3 {[%emt 0:00:34]} Nd4 {[%emt 0:00:10]} 8. O-O {[%emt 0:00:36]} O-O {[%emt 0:01:26]} 9. Qd2 {[%emt 0:00:43]} d6 {[%emt 0:02:03]} 10. Rac1 {[%emt 0:06:25]} Rb8 {[%emt 0:06:44]} 11. Bh6 {[%emt 0:11:56]} Nxe2+ {[%emt 0:17:52]} 12. Nxe2 {[%emt 0:00:19]} e5 {[%emt 0:00:03]} 13. Bxg7 {[%emt 0:06:31]} Kxg7 {[%emt 0:00:12]} 14. c3 {[%emt 0:12:44]} Be6 {[%emt 0:01:40]} 15. a3 {[%emt 0:04:49]} Nc6 {[%emt 0:02:53]} 16. f4 {[%emt 0:10:22]} f6 {[%emt 0:04:19]} 17. d4 {[%emt 0:01:17]} cxd4 {[%emt 0:03:21]} 18. cxd4 {[%emt 0:00:52]} exd4 {[%emt 0:00:40]} 19. f5 {[%emt 0:13:18]} Bf7 {[%emt 0:03:44]} 20. g4 {[%emt 0:08:49]} Qb6 {[%emt 0:01:03]} 21. Kh1 {[%emt 0:01:52]} g5 {[%emt 0:00:28]} 22. Rf3 {[%emt 0:05:27]} h5 {[%emt 0:01:14]} 23. gxh5 {[%emt 0:02:04]} Bxh5 {[%emt 0:00:33]} 24. Rg3 {[%emt 0:00:17]} Bxe2 {[%emt 0:05:55]} 25. Qxe2 {[%emt 0:00:32]} Ne5 {[%emt 0:01:04]} 26. Rg1 {[%emt 0:03:01]} Rh8 {[%emt 0:05:12]} 27. Bf1 {[%emt 0:04:27]} Rh7 {[%emt 0:00:21]} 28. Qd2 {[%emt 0:00:43]} Rbh8 {[%emt 0:01:50]} 29. h3 {[%emt 0:00:40]} Kf7 {[%emt 0:09:09]} 30. b4 {[%emt 0:01:25]} Kf8 {[%emt 0:02:53]} 31. Qa2 {[%emt 0:01:17]} Qc6 {[%emt 0:00:05]} 32. Bg2 {[%emt 0:00:49]} Re7 {[%emt 0:02:59]} 33. b5 {[%emt 0:00:52]} Qxb5 {[%emt 0:01:31]} 34. Rc1 {[%emt 0:00:17]} Nc6 {[%emt 0:01:06]} 35. Rb3 {[%emt 0:00:52]} Qe5 {[%emt 0:00:18]} 36. Qb2 {[%emt 0:00:46]} Rhh7 {[%emt 0:03:13]} 37. Kg1 {[%emt 0:01:54]} g4 {[%emt 0:03:39]} 38. hxg4 {[%emt 0:00:32]} Qh2+ {[%emt 0:00:23]} 39. Kf1 {[%emt 0:01:43]} Qf4+ 40. Kg1 {[%emt 0:00:00]} Qxg4 {[%emt 0:01:52]} 41. Rxc6 {[%emt 0:00:02]} Qd1+ {[%emt 0:00:55]} 42. Kf2 {[%emt 0:00:09]} bxc6 {[%emt 0:00:05]} 43. Rb8+ {[%emt 0:00:22]} Kg7 {[%emt 0:00:41]} 44. Bf3 {[%emt 0:01:18]} Rh2+ {[%emt 0:00:25]} 45. Bg2 {[%emt 0:00:14]} Qg4 {[%emt 0:00:51]} 46. Kf1 {[%emt 0:00:32]} Kh7 {[%emt 0:02:12]} 47. Rb7 {[%emt 0:00:44]} Rxb7 {[%emt 0:00:18]} 48. Qxb7+ {[%emt 0:01:09]} Kh6 {[%emt 0:00:14]} 49. Qb2 {[%emt 0:00:00]} Qxg2+ {[%emt 0:00:46]} 50. Qxg2 {[%emt 0:00:16]} Rxg2 {[%emt 0:00:13]} 51. Kxg2 {[%emt 0:00:15]} Kg5 {[%emt 0:00:05]} 52. e5 {[%emt 0:00:17]} dxe5 {[%emt 0:00:04]} 53. a4 {[%emt 0:00:44]} a5 {[%emt 0:00:04]} 54. Kg3 {[%emt 0:00:06]} c5 {[%emt 0:00:04]} 55. Kf3 {[%emt 0:00:42]} c4 {[%emt 0:00:03]} 56. Ke4 {[%emt 0:00:12]} c3 {[%emt 0:00:04]} 57. Kd3 {[%emt 0:00:35]} e4+ {[%emt 0:00:02]} 58. Ke2 {[%emt 0:00:28]} d3+ {[%emt 0:00:03]} 59. Ke3 {[%emt 0:00:23]} Kxf5 {[%emt 0:00:02]} 60. Kf2 {[%emt 0:01:04]} c2 {[%emt 0:00:20]} 61. Ke1 {[%emt 0:00:28]} e3 {[%emt 0:00:23]} 62. Kf1 {[%emt 0:00:13]} Kg4 {[%emt 0:00:06]} 63. Kg2 {[%emt 0:00:21]} c1=Q {[%emt 0:00:12]} 64. Kh2 {[%emt 0:00:09]} d2 {[%emt 0:00:08]} 65. Kg2 {[%emt 0:00:30]} d1=Q {[%emt 0:22:55]} 66. Kh2 {[%emt 0:00:15]} Qg1# {[%emt 0:00:00]} 0-1

[Event "FIDE WCCC Open-08 2024"]
[Site "Montesilvano"]
[Date "2024.11.19"]
[Round "5.12"]
[White "Elemes, Nurmukhamed"]
[Black "Nurshin, Nurali"]
[Result "1-0"]
[ECO "D58"]
[WhiteElo "1735"]
[BlackElo "1612"]
[Annotator "NA RC"]
[PlyCount "93"]
[EventDate "2024.11.18"]
[EventType "swiss"]
[EventCountry "ITA"]
[SourceTitle "playchess.com"]
[Source "ChessBase"]
[SourceQuality "1"]
[TimeControl "5400+30"]

1. d4 {[%emt 0:00:23]} Nf6 {[%emt 0:00:55]} 2. c4 {[%emt 0:01:07]} e6 {[%emt 0:01:30]} 3. Nf3 {[%emt 0:01:30]} d5 {[%emt 0:00:48]} 4. Nc3 {[%emt 0:01:30]} Be7 {[%emt 0:01:24]} 5. Bg5 {[%emt 0:02:39]} O-O {[%emt 0:00:57]} 6. e3 {[%emt 0:01:51]} h6 {[%emt 0:00:52]} 7. Bh4 {[%emt 0:02:44]} b6 {[%emt 0:02:15]} 8. Rc1 {[%emt 0:02:16]} Bb7 {[%emt 0:01:52]} 9. Bd3 {[%emt 0:03:11]} dxc4 {[%emt 0:01:36]} 10. Bxc4 {[%emt 0:00:49]} Nbd7 {[%emt 0:02:29]} 11. O-O {[%emt 0:04:30]} a6 {[%emt 0:01:17]} 12. Qe2 {[%emt 0:03:30]} b5 {[%emt 0:02:05]} 13. Bb3 {[%emt 0:02:16]} c5 {[%emt 0:01:24]} 14. Rfd1 {[%emt 0:03:25]} Qb6 {[%emt 0:01:55]} 15. Ne5 {[%emt 0:06:19]} Bd6 {[%emt 0:14:38]} 16. Nxd7 {[%emt 0:10:40]} Nxd7 {[%emt 0:00:19]} 17. d5 {[%emt 0:04:20]} c4 {[%emt 0:30:31]} 18. dxe6 {[%emt 0:06:00]} fxe6 {[%emt 0:01:59]} 19. Be7 {[%emt 0:03:30]} Bxe7 {[%emt 0:00:20]} 20. Rxd7 {[%emt 0:01:35]} Qc6 {[%emt 0:00:21]} 21. Rxb7 {[%emt 0:01:43]} Qxb7 {[%emt 0:00:51]} 22. Bc2 {[%emt 0:00:52]} Qd7 {[%emt 0:05:30]} 23. Rd1 {[%emt 0:08:09]} Qe8 {[%emt 0:01:34]} 24. Qg4 {[%emt 0:02:55]} Qf7 {[%emt 0:01:27]} 25. Rf1 {[%emt 0:05:11]} Rad8 {[%emt 0:01:22]} 26. Bg6 {[%emt 0:02:25]} Qf6 {[%emt 0:00:44]} 27. Ne4 {[%emt 0:00:26]} Qe5 {[%emt 0:00:50]} 28. f4 {[%emt 0:02:15]} Qd5 {[%emt 0:01:36]} 29. Nc3 {[%emt 0:01:31]} Qc6 {[%emt 0:21:39]} 30. h4 {[%emt 0:09:18]} e5 {[%emt 0:00:00]} 31. Be4 {[%emt 0:00:27]} Qe8 {[%emt 0:00:00]} 32. Nd5 {[%emt 0:02:01]} Bc5 {[%emt 0:00:00]} 33. f5 {[%emt 0:02:44]} Qd7 {[%emt 0:00:00]} 34. Qg6 {[%emt 0:01:08]} Qf7 {[%emt 0:00:00]} 35. Qc6 {[%emt 0:00:55]} Be7 {[%emt 0:00:18]} 36. Qg6 {[%emt 0:00:50]} Bc5 {[%emt 0:00:10]} 37. Qc6 {[%emt 0:00:18]} Be7 {[%emt 0:00:08]} 38. Nc7 {[%emt 0:00:48]} Qf6 {[%emt 0:01:15]} 39. Qb7 {[%emt 0:00:40]} Bc5 {[%emt 0:00:32]} 40. Nd5 {[%emt 0:00:46]} Qxh4 {[%emt 0:00:56]} 41. f6 {[%emt 0:00:04]} Qg3 {[%emt 0:01:24]} 42. Rf3 {[%emt 0:00:22]} Qe1+ {[%emt 0:00:53]} 43. Kh2 {[%emt 0:00:05]} Qh4+ {[%emt 0:00:06]} 44. Rh3 {[%emt 0:00:04]} Qg5 {[%emt 0:00:25]} 45. Ne7+ {[%emt 0:00:33]} Kh8 {[%emt 0:00:35]} 46. Ng6+ {[%emt 0:00:06]} Kg8 {[%emt 0:00:06]} 47. Qxg7# {[%emt 0:00:14]} 1-0

[Event "FIDE WCCC Open-08 2024"]
[Site "Montesilvano"]
[Date "2024.11.19"]
[Round "5.13"]
[White "Kuncoro, Leo"]
[Black "Kavish Palaniappan K"]
[Result "0-1"]
[ECO "C58"]
[WhiteElo "1726"]
[BlackElo "1589"]
[Annotator "NA RC"]
[PlyCount "70"]
[EventDate "2024.11.18"]
[EventType "swiss"]
[EventCountry "ITA"]
[SourceTitle "playchess.com"]
[Source "ChessBase"]
[SourceQuality "1"]
[TimeControl "5400+30"]

1. e4 {[%emt 0:00:02]} e5 {[%emt 0:00:10]} 2. Nf3 {[%emt 0:00:06]} Nc6 {[%emt 0:00:09]} 3. Bc4 {[%emt 0:00:04]} Nf6 {[%emt 0:00:10]} 4. Ng5 {[%emt 0:00:07]} d5 {[%emt 0:00:08]} 5. exd5 {[%emt 0:00:17]} Na5 {[%emt 0:00:13]} 6. Bb5+ {[%emt 0:00:13]} c6 {[%emt 0:00:19]} 7. dxc6 {[%emt 0:00:20]} bxc6 {[%emt 0:00:13]} 8. Qf3 {[%emt 0:00:12]} Rb8 {[%emt 0:00:54]} 9. Bd3 {[%emt 0:00:30]} h6 {[%emt 0:00:28]} 10. Ne4 {[%emt 0:00:24]} Nd5 {[%emt 0:00:27]} 11. Nbc3 {[%emt 0:02:09]} Be7 {[%emt 0:02:37]} 12. a3 {[%emt 0:03:52]} O-O {[%emt 0:06:51]} 13. Ng3 {[%emt 0:09:17]} Nf4 {[%emt 0:16:28]} 14. b4 {[%emt 0:21:40]} Nb3 {[%emt 0:09:42]} 15. Rb1 {[%emt 0:00:13]} Nd4 {[%emt 0:01:59]} 16. Qe4 {[%emt 0:03:08]} g6 {[%emt 0:00:34]} 17. O-O {[%emt 0:01:33]} Bd6 {[%emt 0:02:44]} 18. Nce2 {[%emt 0:07:38]} f5 {[%emt 0:05:01]} 19. Qe3 {[%emt 0:03:22]} Nfxe2+ {[%emt 0:00:15]} 20. Nxe2 {[%emt 0:01:10]} f4 {[%emt 0:00:41]} 21. Bc4+ {[%emt 0:02:03]} Kh7 {[%emt 0:00:38]} 22. Qc3 {[%emt 0:01:45]} f3 {[%emt 0:01:13]} 23. Ng3 {[%emt 0:04:50]} fxg2 {[%emt 0:01:12]} 24. Kxg2 {[%emt 0:00:15]} Qh4 {[%emt 0:03:46]} 25. f4 {[%emt 0:13:47]} exf4 {[%emt 0:04:29]} 26. Bb2 {[%emt 0:00:35]} Qh3+ {[%emt 0:05:32]} 27. Kg1 {[%emt 0:00:34]} fxg3 {[%emt 0:00:36]} 28. Bg8+ {[%emt 0:00:27]} Kxg8 {[%emt 0:01:03]} 29. Rxf8+ {[%emt 0:02:25]} Bxf8 {[%emt 0:00:13]} 30. Qxd4 {[%emt 0:02:31]} Qxh2+ {[%emt 0:00:34]} 31. Kf1 {[%emt 0:00:46]} Bh3+ {[%emt 0:00:15]} 32. Ke1 {[%emt 0:00:52]} Re8+ {[%emt 0:00:06]} 33. Qe3 {[%emt 0:00:28]} Qf2+ {[%emt 0:00:24]} 34. Kd1 {[%emt 0:00:25]} Qf1+ {[%emt 0:00:04]} 35. Qe1 {[%emt 0:00:15]} Rxe1# {[%emt 0:00:05]} 0-1